bitfinex/quotes_BTCUSD_20241203
["timestamp","ask_amount","ask_price","bid_price","bid_amount"]
[1733185158272,0.208187,96068.0,96063.0,0.12456511]
[1733185158479,0.208194,96064.0,96063.0,0.12556511]
[1733185158688,0.216194,96064.0,96063.0,0.12556511]
[1733185158896,0.008,96064.0,96063.0,0.12556511]
[1733185159126,0.009,96064.0,96063.0,0.12456511]
[1733185159346,0.217194,96064.0,96063.0,0.12456511]
[1733185159999,0.208194,96064.0,96063.0,0.12456511]
[1733185160221,0.017,96064.0,96063.0,0.12556511]
[1733185160435,0.017,96064.0,96063.0,0.34621762]
[1733185161510,0.017,96064.0,96063.0,0.13802162]
[1733185161720,0.017,96064.0,96063.0,0.34621762]
[1733185162864,0.017,96064.0,96063.0,0.44906283]
[1733185163299,0.208094,96111.0,96070.0,0.0791]
[1733185163300,0.208134,96092.0,96070.0,0.0791]
[1733185163509,0.208094,96111.0,96069.0,0.0482]
[1733185163510,0.208094,96111.0,96079.0,0.0791]
[1733185163727,0.10284521,96110.0,96080.0,0.001842]
[1733185164431,0.15,96109.0,96079.0,0.0791]
[1733185164660,0.15,96109.0,96079.0,0.080942]
[1733185164661,0.003,96092.0,96079.0,0.080942]
[1733185164878,0.208136,96091.0,96080.0,0.001842]
[1733185165094,0.003,96092.0,96081.0,0.0289109]
[1733185165314,0.208145,96087.0,96079.0,0.0791]
[1733185165530,0.208139,96090.0,96079.0,0.0791]
[1733185165770,0.208139,96090.0,96080.0,0.00184201]
[1733185165983,0.208139,96090.0,96081.0,0.0289109]
[1733185166213,0.20814,96089.0,96082.0,0.0452]
[1733185166432,0.20813,96094.0,96082.0,0.0452]
[1733185166646,0.208145,96087.0,96082.0,0.0452]
[1733185166864,0.214145,96087.0,96082.0,0.0452]
[1733185167076,0.214145,96087.0,96082.0,0.0560902]
[1733185167310,0.208131,96093.0,96082.0,0.0560902]
[1733185167537,0.009,96089.0,96082.0,0.0570902]
[1733185167753,0.009,96089.0,96087.0,0.208144]
[1733185167754,0.016,96089.0,96087.0,0.208144]
[1733185167972,0.016,96089.0,96088.0,0.12403862]
[1733185168199,0.016,96089.0,96088.0,0.2778258]
[1733185168442,0.007,96089.0,96088.0,0.27598383]
[1733185168892,0.208104,96106.0,96089.0,0.0771]
[1733185169116,0.208104,96106.0,96091.0,0.0771]
[1733185169337,0.208104,96106.0,96092.0,0.10468691]
[1733185170032,0.003,96106.0,96094.0,0.208129]
[1733185170248,0.003,96106.0,96095.0,0.20085288]
[1733185170466,0.003,96106.0,96102.0,0.208111]
[1733185170677,6.143e-05,96106.0,96103.0,0.08334153]
[1733185170910,0.00306143,96106.0,96104.0,0.208107]
[1733185171127,0.00806143,96106.0,96105.0,0.00184153]
[1733185171335,0.00806143,96106.0,96105.0,0.05179848]
[1733185171521,0.00306143,96106.0,96105.0,0.05179848]
[1733185171760,0.00806143,96106.0,96105.0,0.05179848]
[1733185172230,0.00506143,96106.0,96105.0,0.05179848]
[1733185172455,0.01006143,96106.0,96105.0,0.05179848]
[1733185172670,0.00506143,96106.0,96105.0,0.05179848]
[1733185172891,6.143e-05,96106.0,96105.0,0.05179848]
[1733185173370,0.00506143,96106.0,96105.0,0.05179848]
[1733185173611,0.00506143,96106.0,96105.0,0.00184153]
[1733185173846,0.00506143,96106.0,96105.0,0.00184154]
[1733185174085,0.01106143,96106.0,96105.0,0.04964154]
[1733185174322,0.01106143,96106.0,96105.0,0.12564154]
[1733185174565,0.01106143,96106.0,96105.0,0.20063929]
[1733185175754,0.01106143,96106.0,96105.0,0.22448602]
[1733185175989,0.01106143,96106.0,96105.0,0.22264448]
[1733185177502,0.01106143,96106.0,96105.0,0.14764673]
[1733185177725,0.01106143,96106.0,96105.0,0.14948825]
[1733185178587,0.01106143,96106.0,96105.0,0.10084673]
[1733185179451,0.00606143,96106.0,96105.0,0.10084673]
[1733185179635,0.01206143,96106.0,96105.0,0.10184673]
[1733185179894,0.01206143,96106.0,96105.0,0.08818467]
[1733185180113,0.01206143,96106.0,96105.0,0.11198954]
[1733185180354,0.00606143,96106.0,96105.0,0.11098954]
[1733185180572,0.01306143,96106.0,96105.0,0.11198954]
[1733185181289,0.01479143,96106.0,96105.0,0.11198954]
[1733185182780,0.01479143,96106.0,96105.0,0.08818467]
[1733185183467,0.01479143,96106.0,96105.0,0.11199686]
[1733185189023,0.22289443,96106.0,96105.0,0.11199686]
[1733185189229,0.01479143,96106.0,96105.0,0.11199686]
[1733185189414,0.01479143,96106.0,96105.0,0.08818467]
[1733185189853,0.22289443,96106.0,96105.0,0.11168811]
[1733185190504,0.22289443,96106.0,96105.0,0.02550344]
[1733185191182,0.24589443,96106.0,96105.0,0.02550344]
[1733185191397,0.23989443,96106.0,96105.0,0.02450344]
[1733185191635,0.21689443,96106.0,96105.0,0.001]
[1733185191846,0.22389443,96106.0,96105.0,0.002]
[1733185192354,0.21689443,96106.0,96105.0,0.001]
[1733185192606,0.21689443,96106.0,96105.0,0.002]
[1733185192837,0.22389443,96106.0,96105.0,0.002]
[1733185193069,0.01579143,96106.0,96105.0,0.002]
[1733185193529,0.01579143,96106.0,96105.0,0.0847]
[1733185193784,0.01579143,96106.0,96105.0,0.12137987]
[1733185193996,0.00879143,96106.0,96105.0,0.12037987]
[1733185194265,0.01779143,96106.0,96105.0,0.12222145]
[1733185194510,0.00879143,96106.0,96105.0,0.12037987]
[1733185194727,0.00179143,96106.0,96105.0,0.11937987]
[1733185194955,0.01479143,96106.0,96105.0,0.32848487]
[1733185195207,0.01479143,96106.0,96105.0,0.12037987]
[1733185195427,0.01479143,96106.0,96105.0,0.11937987]
[1733185196154,0.01979143,96106.0,96105.0,0.12037987]
[1733185200204,0.01979143,96106.0,96105.0,0.10720987]
[1733185201890,0.01979143,96106.0,96105.0,0.51638704]
[1733185202366,0.01979143,96106.0,96105.0,0.02450987]
[1733185202859,0.04279143,96106.0,96105.0,0.02450987]
[1733185203348,0.02979143,96106.0,96105.0,0.00874774]
[1733185203604,0.02479143,96106.0,96105.0,0.00774774]
[1733185203824,0.03379143,96106.0,96105.0,0.00774774]
[1733185204892,0.04079143,96106.0,96105.0,0.00774774]
[1733185206453,0.22163664,96106.0,96105.0,0.00774774]
[1733185206680,0.208144,96087.0,96086.0,0.41089034]
[1733185206906,0.208144,96087.0,96086.0,0.00774966]
[1733185208255,0.209144,96087.0,96086.0,0.00774966]
[1733185208725,0.210144,96087.0,96086.0,0.00774966]
[1733185209172,0.209144,96087.0,96086.0,0.00774966]
[1733185209401,0.214144,96087.0,96086.0,0.00774966]
[1733185210052,0.214144,96087.0,96086.0,0.02014633]
[1733185210053,0.217144,96087.0,96086.0,0.02014633]
[1733185210278,0.213144,96087.0,96086.0,0.02014633]
[1733185210503,0.005,96087.0,96086.0,0.05550034]
[1733185210726,0.014,96087.0,96086.0,0.02014015]
[1733185211197,0.023,96087.0,96086.0,0.02014015]
[1733185211422,0.018,96087.0,96086.0,0.02014015]
[1733185211606,0.024,96087.0,96086.0,0.02014015]
[1733185212391,0.018,96087.0,96086.0,0.02014015]
[1733185212605,0.024,96087.0,96086.0,0.02014015]
[1733185213086,0.416282,96089.0,96086.0,0.02014015]
[1733185213299,0.416282,96089.0,96087.0,0.02014015]
[1733185213508,0.208141,96089.0,96088.0,0.00774621]
[1733185213934,0.231141,96089.0,96088.0,0.00774621]
[1733185214589,0.240141,96089.0,96088.0,0.00774621]
[1733185214798,0.231141,96089.0,96088.0,0.00774621]
[1733185215481,0.214141,96089.0,96088.0,0.00774621]
[1733185215718,0.006,96089.0,96088.0,0.00774621]
[1733185216165,0.006,96089.0,96088.0,0.08924621]
[1733185216383,0.015,96089.0,96088.0,0.26883154]
[1733185216605,0.015,96089.0,96088.0,0.28122548]
[1733185217260,0.00179143,96106.0,96102.0,0.0799]
[1733185217684,0.00179143,96106.0,96103.0,0.00774352]
[1733185217905,0.00179143,96106.0,96102.0,0.0799]
[1733185218149,0.00179143,96106.0,96104.0,0.02354911]
[1733185218593,0.00179143,96106.0,96103.0,0.0235494]
[1733185218807,0.00579143,96106.0,96104.0,0.0077435]
[1733185219018,0.00579143,96106.0,96103.0,0.0235494]
[1733185219269,0.00179143,96106.0,96104.0,0.01827263]
[1733185219485,0.00179143,96106.0,96104.0,0.0105291]
[1733185219695,0.00579143,96106.0,96104.0,0.0105291]
[1733185220118,0.00979143,96106.0,96104.0,0.0105291]
[1733185220326,0.00579143,96106.0,96104.0,0.0105291]
[1733185220760,0.00679143,96106.0,96105.0,0.03003887]
[1733185221188,0.00979143,96106.0,96105.0,0.03962409]
[1733185221624,0.00679143,96106.0,96105.0,0.03962409]
[1733185221830,0.01079143,96106.0,96105.0,0.03962409]
[1733185222266,0.00679143,96106.0,96105.0,0.03962409]
[1733185222702,0.01079143,96106.0,96105.0,0.03962409]
[1733185222910,0.00579143,96106.0,96105.0,0.11882409]
[1733185223378,0.00579143,96106.0,96105.0,0.22166922]
[1733185223379,0.01079143,96106.0,96105.0,0.22166922]
[1733185223585,0.01079143,96106.0,96105.0,0.41982777]
[1733185223786,0.01079143,96106.0,96105.0,0.4322157]
[1733185224626,0.00179143,96106.0,96105.0,0.4322157]
[1733185224818,0.00179143,96106.0,96105.0,0.4332157]
[1733185225025,0.00279143,96106.0,96105.0,0.4332157]
[1733185225455,0.00179143,96106.0,96105.0,0.4332157]
[1733185225875,0.00179143,96106.0,96105.0,0.4352157]
[1733185226085,0.00179143,96106.0,96105.0,0.4342157]
[1733185226494,0.00179143,96106.0,96105.0,0.4382157]
[1733185226701,0.00179143,96106.0,96105.0,0.4342157]
[1733185227561,0.00179143,96106.0,96105.0,0.4382157]
[1733185227771,0.00179143,96106.0,96105.0,0.5882157]
[1733185228651,0.00179143,96106.0,96105.0,0.57582777]
[1733185229290,0.00179143,96106.0,96105.0,0.58820571]
[1733185229931,0.00179143,96106.0,96105.0,0.57582777]
[1733185230359,0.00179143,96106.0,96105.0,0.58820444]
[1733185231273,0.00179143,96106.0,96105.0,0.56808408]
[1733185231491,0.00179143,96106.0,96105.0,0.97839235]
[1733185233476,0.00179143,96106.0,96105.0,0.56808408]
[1733185233911,0.00179143,96106.0,96105.0,0.81368408]
[1733185235664,0.00179143,96106.0,96105.0,0.61368408]
[1733185235873,0.00179143,96106.0,96105.0,0.41368408]
[1733185236509,0.00179143,96106.0,96105.0,0.36808408]
[1733185236718,0.00179143,96106.0,96105.0,0.21808408]
[1733185236962,0.00179143,96106.0,96105.0,0.18404521]
[1733185237176,0.00179143,96106.0,96105.0,0.18604521]
[1733185237419,0.00179143,96106.0,96105.0,0.18588656]
[1733185237643,0.00179143,96106.0,96105.0,0.18404521]
[1733185237874,0.00179143,96106.0,96105.0,0.00384142]
[1733185238077,0.00179143,96106.0,96105.0,0.05491965]
[1733185238281,0.00179143,96106.0,96105.0,0.002]
[1733185239420,0.00379143,96106.0,96105.0,0.002]
[1733185239640,0.00379143,96106.0,96105.0,0.208105]
[1733185239873,0.00379143,96106.0,96105.0,0.20994649]
[1733185240102,0.00379143,96106.0,96105.0,0.05256005]
[1733185240569,0.00579143,96106.0,96105.0,0.05256005]
[1733185242995,0.00379143,96106.0,96105.0,0.05256005]
[1733185243460,0.00279143,96106.0,96105.0,0.05256005]
[1733185243941,0.00379143,96106.0,96105.0,0.05256005]
[1733185245370,0.00279143,96106.0,96105.0,0.05256005]
[1733185245581,0.00379143,96106.0,96105.0,0.05256005]
[1733185246040,0.00379143,96106.0,96105.0,0.38630526]
[1733185246264,0.00379143,96106.0,96105.0,0.43026377]
[1733185246479,0.00279143,96106.0,96105.0,0.43026377]
[1733185246685,0.00179143,96106.0,96105.0,0.83026377]
[1733185246894,0.00179143,96106.0,96105.0,0.83126377]
[1733185247513,0.00179143,96106.0,96105.0,1.24011874]
[1733185247719,0.00179143,96106.0,96105.0,1.24411874]
[1733185247939,0.00179143,96106.0,96105.0,1.2648944]
[1733185248349,0.00179143,96106.0,96105.0,1.2658944]
[1733185248771,0.00179143,96106.0,96105.0,1.2648944]
[1733185249431,0.00279143,96106.0,96105.0,1.2708944]
[1733185249642,0.00279143,96106.0,96105.0,0.85503943]
[1733185250065,0.00379143,96106.0,96105.0,0.86403943]
[1733185250701,0.00379143,96106.0,96105.0,0.87546007]
[1733185250904,0.00379143,96106.0,96105.0,0.89447969]
[1733185253349,0.00379143,96106.0,96105.0,0.86228339]
[1733185253569,0.00379143,96106.0,96105.0,0.41648339]
[1733185255272,0.00379143,96106.0,96105.0,0.03201962]
[1733185255459,0.00379143,96106.0,96105.0,0.0338611]
[1733185256000,0.00379143,96106.0,96105.0,0.0298611]
[1733185256209,0.00179143,96106.0,96105.0,0.0208611]
[1733185256645,0.00179143,96106.0,96105.0,0.0238611]
[1733185256881,0.00179143,96106.0,96105.0,0.11068711]
[1733185257083,0.00179143,96106.0,96105.0,0.11268711]
[1733185257298,0.00179143,96106.0,96105.0,0.10768711]
[1733185259420,0.00179143,96106.0,96105.0,0.10868711]
[1733185259625,0.00179143,96106.0,96105.0,0.02001962]
[1733185260251,0.00179143,96106.0,96097.0,0.208121]
[1733185260479,0.00179143,96106.0,96105.0,0.001]
[1733185260911,0.00179143,96106.0,96099.0,0.208118]
[1733185261177,0.00679143,96106.0,96105.0,0.001]
[1733185261425,0.21489543,96106.0,96105.0,0.001]
[1733185261651,0.21689543,96106.0,96105.0,0.001]
[1733185261895,0.23989543,96106.0,96105.0,0.001]
[1733185262114,0.23789543,96106.0,96105.0,0.001]
[1733185262326,0.31519543,96106.0,96105.0,0.001]
[1733185262774,0.32119543,96106.0,96105.0,0.002]
[1733185263206,0.31519543,96106.0,96105.0,0.001]
[1733185263659,0.31919543,96106.0,96105.0,0.001]
[1733185264112,0.208115,96101.0,96089.0,0.21084659]
[1733185264329,0.208126,96096.0,96089.0,0.00270659]
[1733185264540,0.00020688,96098.0,96090.0,0.02477768]
[1733185264752,0.00020688,96098.0,96091.0,0.00184179]
[1733185264961,0.208123,96097.0,96089.0,0.00270661]
[1733185265185,0.208124,96097.0,96089.0,0.0008648]
[1733185265399,0.208124,96097.0,96090.0,0.02414596]
[1733185266054,0.416248,96097.0,96090.0,0.02414596]
[1733185266263,0.208127,96096.0,96090.0,0.02414596]
[1733185266678,0.208135,96092.0,96089.0,0.0008648]
[1733185267094,0.208127,96096.0,96089.0,0.0008648]
[1733185267299,0.008,96097.0,96089.0,0.0008648]
[1733185267756,0.208125,96096.0,96089.0,0.0008648]
[1733185267976,0.003,96092.0,96089.0,0.0008648]
[1733185268235,0.003,96092.0,96090.0,0.22931005]
[1733185268456,0.2,96130.0,96090.0,0.22931005]
[1733185268457,0.00179143,96106.0,96103.0,0.208109]
[1733185268699,0.00179143,96106.0,96103.0,0.416218]
[1733185268928,0.00179143,96106.0,96105.0,0.208105]
[1733185269138,0.00179143,96106.0,96105.0,0.25175209]
[1733185269383,0.00179143,96106.0,96105.0,0.24991056]
[1733185269587,0.00179143,96106.0,96105.0,0.04180556]
[1733185269789,0.00179143,96106.0,96102.0,0.208112]
[1733185269992,0.00179143,96106.0,96103.0,0.00184156]
[1733185270198,0.00679143,96106.0,96105.0,0.001]
[1733185270447,0.00179143,96106.0,96103.0,0.00584156]
[1733185270662,0.00179143,96106.0,96104.0,0.25031376]
[1733185270912,0.00479143,96106.0,96105.0,0.00184153]
[1733185271144,0.00179143,96106.0,96105.0,0.00184153]
[1733185271364,0.00379143,96106.0,96105.0,0.00184153]
[1733185271615,0.00679143,96106.0,96105.0,0.00184153]
[1733185271832,0.00479143,96106.0,96105.0,0.00184153]
[1733185272043,0.00579143,96106.0,96105.0,0.00184153]
[1733185272257,0.00579143,96106.0,96105.0,0.06868026]
[1733185272670,0.00279143,96106.0,96105.0,0.06868026]
[1733185273331,0.00179143,96106.0,96105.0,0.06868026]
[1733185273542,0.00479143,96106.0,96105.0,0.06868026]
[1733185273748,0.00679143,96106.0,96105.0,0.00184153]
[1733185273961,0.00679143,96106.0,96097.0,0.15]
[1733185274182,0.00679143,96106.0,96088.0,0.0008648]
[1733185274183,0.00579143,96106.0,96091.0,0.41074314]
[1733185274440,0.208117,96100.0,96092.0,0.0515318]
[1733185274681,0.00579143,96106.0,96092.0,0.0515318]
[1733185274899,0.00579143,96106.0,96088.0,0.41160794]
[1733185274900,0.023,96105.0,96088.0,0.0008648]
[1733185275109,0.208124,96097.0,96088.0,0.0008648]
[1733185275749,0.208121,96098.0,96088.0,0.0008648]
[1733185276172,0.023,96105.0,96088.0,0.0008648]
[1733185276382,0.208119,96099.0,96097.0,0.002]
[1733185276558,0.023,96098.0,96097.0,0.002]
[1733185277270,0.208132,96093.0,96089.0,0.0058648]
[1733185277488,0.416264,96093.0,96089.0,0.03035306]
[1733185277693,0.416264,96093.0,96089.0,0.0088648]
[1733185277901,0.416264,96093.0,96089.0,0.0008648]
[1733185278110,0.208132,96093.0,96089.0,0.0008648]
[1733185278527,0.211132,96093.0,96089.0,0.0008648]
[1733185279394,0.003,96093.0,96089.0,0.0008648]
[1733185279845,0.007,96093.0,96089.0,0.0018648]
[1733185280064,0.208133,96092.0,96089.0,0.0018648]
[1733185280753,0.208129,96094.0,96089.0,0.0008648]
[1733185280981,0.005,96093.0,96090.0,0.02108826]
[1733185281197,0.008,96093.0,96091.0,0.0762]
[1733185281405,0.008,96093.0,96091.0,0.284336]
[1733185281610,0.005,96093.0,96091.0,0.34090977]
[1733185281820,0.003,96092.0,96091.0,0.34090977]
[1733185282445,0.003,96092.0,96091.0,0.13277377]
[1733185282652,0.009,96092.0,96091.0,0.13277377]
[1733185282864,0.003,96092.0,96091.0,0.13277377]
[1733185283129,0.003,96092.0,96091.0,0.34090977]
[1733185283341,0.003,96092.0,96091.0,0.34190977]
[1733185283342,0.009,96092.0,96091.0,0.34190977]
[1733185283776,0.006,96092.0,96091.0,0.34190977]
[1733185283979,0.004,96093.0,96091.0,0.13277377]
[1733185284211,0.004,96093.0,96091.0,0.284335]
[1733185284687,0.208133,96093.0,96089.0,0.0008648]
[1733185285132,0.20813,96094.0,96089.0,0.0008648]
[1733185285350,0.003,96092.0,96089.0,0.0008648]
[1733185285560,0.003,96092.0,96090.0,0.02117236]
[1733185286001,0.007,96092.0,96090.0,0.02117236]
[1733185286422,0.003,96092.0,96090.0,0.02117236]
[1733185286622,0.008,96092.0,96090.0,0.02117236]
[1733185287042,0.208125,96096.0,96090.0,0.02117236]
[1733185287248,0.023,96097.0,96090.0,0.02217236]
[1733185287249,0.006,96092.0,96090.0,0.02217236]
[1733185288131,0.009,96092.0,96090.0,0.02217236]
[1733185289025,0.003,96092.0,96090.0,0.02117236]
[1733185289244,0.003,96092.0,96090.0,0.02217236]
[1733185289487,0.003,96092.0,96090.0,0.02117236]
[1733185289942,0.009,96092.0,96090.0,0.02217236]
[1733185290590,0.009,96092.0,96090.0,0.001]
[1733185290803,0.023,96091.0,96090.0,0.001]
[1733185291011,0.231136,96091.0,96090.0,0.001]
[1733185292594,0.231136,96091.0,96089.0,0.0008648]
[1733185293012,0.237136,96091.0,96090.0,0.001]
[1733185293239,0.032,96091.0,96090.0,0.001]
[1733185293652,0.023,96091.0,96089.0,0.0008648]
[1733185293865,0.023,96093.0,96089.0,0.0008648]
[1733185294111,0.023,96090.0,96089.0,0.0018648]
[1733185295866,0.1482,96090.0,96089.0,0.0008648]
[1733185296711,0.1622,96090.0,96089.0,0.0028648]
[1733185296925,0.037,96090.0,96089.0,0.0028648]
[1733185297134,0.032,96090.0,96089.0,0.0018648]
[1733185297574,0.038,96090.0,96089.0,0.0018648]
[1733185307331,0.115,96090.0,96089.0,0.0018648]
[1733185308421,0.038,96090.0,96089.0,0.0018648]
[1733185315895,0.038,96090.0,96089.0,0.01017776]
[1733185316736,0.038,96090.0,96089.0,0.0018648]
[1733185325385,0.2199648,96090.0,96089.0,0.0018648]
[1733185329213,0.2139648,96090.0,96089.0,0.0018648]
[1733185329415,0.4623648,96090.0,96089.0,0.0018648]
[1733185329626,0.6623648,96090.0,96089.0,0.0018648]
[1733185330036,0.6633648,96090.0,96089.0,0.0068648]
[1733185330671,0.6633648,96090.0,96089.0,0.0008648]
[1733185330672,0.6533648,96090.0,96089.0,0.0008648]
[1733185330880,0.60814,96089.0,96088.0,8e-07]
[1733185331104,0.83958521,96089.0,96088.0,8e-07]
[1733185331549,0.336792,96065.0,96064.0,0.000865]
[1733185331766,0.43963721,96065.0,96064.0,0.000865]
[1733185332420,0.63963721,96065.0,96064.0,0.000865]
[1733185332636,0.83963721,96065.0,96064.0,0.000865]
[1733185332845,0.86273541,96065.0,96064.0,0.000865]
[1733185333074,0.88390832,96065.0,96064.0,0.000865]
[1733185333525,0.88490832,96065.0,96064.0,0.000865]
[1733185333934,0.88490832,96065.0,96064.0,0.001865]
[1733185334137,0.88390832,96065.0,96064.0,0.000865]
[1733185334626,0.88490832,96065.0,96064.0,0.001865]
[1733185334848,0.88590832,96065.0,96064.0,0.000865]
[1733185335067,0.88690832,96065.0,96064.0,0.001865]
[1733185335750,1.03690832,96065.0,96064.0,0.001865]
[1733185335963,1.03590832,96065.0,96064.0,0.001865]
[1733185336183,1.03690832,96065.0,96064.0,0.001865]
[1733185336636,1.03590832,96065.0,96064.0,1e-06]
[1733185336845,0.5436,96064.0,96063.0,5e-07]
[1733185337060,0.64644521,96064.0,96063.0,5e-07]
[1733185338622,0.64744521,96064.0,96063.0,0.0010005]
[1733185338845,0.64744521,96064.0,96063.0,5e-07]
[1733185338846,0.64644521,96064.0,96063.0,5e-07]
[1733185339281,0.64744521,96064.0,96063.0,5e-07]
[1733185339736,0.64644521,96064.0,96063.0,5e-07]
[1733185340160,0.64744521,96064.0,96063.0,5e-07]
[1733185340279,0.64644521,96064.0,96063.0,5e-07]
[1733185340700,0.64744521,96064.0,96063.0,5e-07]
[1733185341136,0.64844521,96064.0,96063.0,5e-07]
[1733185341358,0.608216,96054.0,96053.0,7e-07]
[1733185341569,0.86036121,96054.0,96053.0,7e-07]
[1733185341771,0.86036121,96054.0,96022.0,0.0017304]
[1733185341772,0.208283,96023.0,96022.0,0.0017304]
[1733185341977,0.33412821,96023.0,96022.0,0.02671697]
[1733185342178,0.33412821,96023.0,96022.0,0.0017304]
[1733185342987,0.33418953,96023.0,96022.0,0.0017304]
[1733185343438,0.55476829,96023.0,96022.0,0.0017304]
[1733185343632,0.55476829,96023.0,95994.0,0.0008649]
[1733185343633,0.231344,95995.0,95994.0,0.0008649]
[1733185343846,0.33418921,95995.0,95994.0,0.0008649]
[1733185344444,0.35503894,95995.0,95994.0,0.0008649]
[1733185344873,0.70503894,95995.0,95994.0,0.0008649]
[1733185345078,0.2,95992.0,95968.0,0.0498]
[1733185345299,0.47584521,95992.0,95968.0,0.0498]
[1733185345755,0.47584521,95992.0,95967.0,0.0803288]
[1733185345964,0.67584521,95992.0,95967.0,0.0017288]
[1733185346313,0.6759065,95992.0,95967.0,0.0017288]
[1733185347526,0.6779065,95992.0,95967.0,0.0017288]
[1733185348325,0.4779065,95992.0,95967.0,0.0017288]
[1733185348971,0.4779065,95992.0,95983.0,0.0799]
[1733185350414,0.4779065,95992.0,95969.0,0.0762]
[1733185351093,0.4769065,95992.0,95969.0,0.0762]
[1733185351301,0.4759065,95992.0,95969.0,0.0762]
[1733185351536,0.4769065,95992.0,95969.0,0.0762]
[1733185351731,0.4779065,95992.0,95969.0,0.0762]
[1733185352077,0.4985803,95992.0,95969.0,0.0762]
[1733185352480,0.4975803,95992.0,95969.0,0.0762]
[1733185352955,0.4985803,95992.0,95991.0,0.0078648]
[1733185353175,0.4975803,95992.0,95991.0,0.0078648]
[1733185353410,0.4975803,95992.0,95991.0,0.0088648]
[1733185353817,0.4985803,95992.0,95991.0,0.0158648]
[1733185354245,0.6217803,95992.0,95991.0,0.0008648]
[1733185354459,0.6217803,95992.0,95988.0,7.8e-07]
[1733185354460,0.55,95989.0,95988.0,7.8e-07]
[1733185354642,0.67584521,95989.0,95988.0,7.8e-07]
[1733185354911,0.80104521,95989.0,95988.0,7.8e-07]
[1733185356415,0.80104521,95989.0,95922.0,0.40777355]
[1733185356416,0.416979,95928.0,95922.0,0.40777355]
[1733185356627,0.231494,95926.0,95910.0,0.0766]
[1733185356835,0.33433921,95926.0,95910.0,0.0766]
[1733185357695,0.53433921,95926.0,95925.0,0.0158649]
[1733185357905,0.73433921,95926.0,95925.0,0.00845453]
[1733185358325,0.68533921,95926.0,95925.0,0.01645453]
[1733185358833,0.68533921,95926.0,95925.0,0.00945453]
[1733185358834,0.50570966,95926.0,95925.0,0.00945453]
[1733185359061,0.50570966,95926.0,95925.0,0.01645453]
[1733185359277,0.50670966,95926.0,95925.0,0.01645453]
[1733185359692,0.50470966,95926.0,95925.0,0.00145453]
[1733185359891,0.50570966,95926.0,95925.0,0.00945453]
[1733185360176,0.33433921,95926.0,95925.0,0.00145453]
[1733185360397,0.001,95926.0,95925.0,0.00845453]
[1733185360607,0.001,95926.0,95925.0,0.08365453]
[1733185360821,0.002,95926.0,95925.0,0.09165453]
[1733185361254,0.0438975,95926.0,95925.0,0.11494087]
[1733185361678,0.0668975,95926.0,95925.0,0.11494087]
[1733185361884,0.025,95926.0,95925.0,0.11494087]
[1733185362096,0.024,95926.0,95925.0,0.10794087]
[1733185362310,0.025,95926.0,95925.0,0.11694087]
[1733185362735,0.023,95926.0,95925.0,0.09994087]
[1733185363171,0.033,95926.0,95925.0,0.10994087]
[1733185363391,0.024,95926.0,95925.0,0.10894087]
[1733185363608,0.0699975,95926.0,95925.0,0.11694087]
[1733185364032,0.025,95926.0,95925.0,0.11694087]
[1733185366991,0.12784521,95926.0,95925.0,0.04174087]
[1733185367504,0.12784521,95926.0,95925.0,0.01845453]
[1733185369041,0.32784521,95926.0,95925.0,0.01845453]
[1733185369285,0.52784521,95926.0,95925.0,0.01845453]
[1733185369485,0.67784521,95926.0,95925.0,0.01845453]
[1733185369933,0.27584521,95926.0,95925.0,0.00145453]
[1733185370154,0.25284521,95926.0,95925.0,0.00145453]
[1733185370363,0.25384521,95926.0,95925.0,0.00945453]
[1733185370566,0.10284521,95926.0,95925.0,0.00145453]
[1733185370775,0.2,95943.0,95925.0,0.00145453]
[1733185370776,0.208466,95939.0,95926.0,0.0775]
[1733185371013,0.2,95954.0,95926.0,0.0775]
[1733185371014,0.12369181,95938.0,95926.0,0.0775]
[1733185371209,0.208488,95929.0,95927.0,0.02332789]
[1733185371623,0.208481,95932.0,95926.0,0.0775]
[1733185371837,0.208473,95936.0,95926.0,0.0775]
[1733185372044,0.208473,95936.0,95927.0,0.02332789]
[1733185372275,0.208461,95941.0,95927.0,0.02332789]
[1733185372483,0.208477,95934.0,95927.0,0.02332789]
[1733185372697,0.208489,95928.0,95927.0,0.03232789]
[1733185373126,0.31133421,95928.0,95927.0,0.02332789]
[1733185373378,0.31133421,95928.0,95925.0,0.00145453]
[1733185373379,0.51982421,95928.0,95925.0,0.00145453]
[1733185373583,0.208494,95926.0,95925.0,0.00145453]
[1733185373838,0.36873697,95926.0,95925.0,0.00145453]
[1733185374925,0.33433921,95926.0,95925.0,0.00145453]
[1733185375866,0.33533921,95926.0,95925.0,0.01045453]
[1733185376539,0.33633921,95926.0,95925.0,0.01945453]
[1733185385905,0.33633921,95926.0,95925.0,0.01763315]
[1733185389043,0.233494,95926.0,95925.0,0.01763315]
[1733185389299,0.233494,95926.0,95925.0,0.09363315]
[1733185390706,0.233494,95926.0,95925.0,0.11696529]
[1733185390943,0.025,95926.0,95925.0,0.09449915]
[1733185391725,0.025,95926.0,95925.0,0.50606642]
[1733185391966,0.025,95926.0,95925.0,0.11783129]
[1733185394606,0.025,95926.0,95925.0,0.52968354]
[1733185395277,0.17204181,95926.0,95925.0,0.04183129]
[1733185395993,0.17204181,95926.0,95925.0,0.01249696]
[1733185396210,0.231535,95907.0,95906.0,0.0765]
[1733185396425,0.231535,95907.0,95906.0,0.07708928]
[1733185396640,0.231535,95907.0,95906.0,0.09930863]
[1733185396874,0.023,95907.0,95906.0,0.09930863]
[1733185397118,0.231535,95907.0,95906.0,0.09930863]
[1733185397558,0.237535,95907.0,95906.0,0.09930863]
[1733185398197,0.242535,95907.0,95906.0,0.10030863]
[1733185398416,0.25568519,95907.0,95906.0,0.10030863]
[1733185398630,0.242535,95907.0,95906.0,0.10030863]
[1733185399548,0.034,95907.0,95906.0,0.10030863]
[1733185400758,0.011,95907.0,95906.0,0.10030863]
[1733185402545,0.011,95907.0,95906.0,0.51384543]
[1733185402764,0.011,95907.0,95906.0,0.51470983]
[1733185403203,0.011,95907.0,95906.0,0.10117303]
[1733185404032,0.0329525,95907.0,95906.0,0.10117303]
[1733185404494,0.011,95907.0,95906.0,0.10117303]
[1733185404725,0.011,95907.0,95906.0,0.07895368]
[1733185405151,0.011,95907.0,95906.0,0.10134531]
[1733185405367,0.011,95907.0,95906.0,0.07895368]
[1733185405600,0.011,95907.0,95906.0,0.10134531]
[1733185406870,0.011,95907.0,95906.0,0.30988231]